fUSD/lending_fUSD_20240414
["ID","MTS","AMOUNT","RATE_DAILY","PERIOD"]
[322593555,1713096539366,-2446.90047311,0.0001899,2]
[322593556,1713096539398,-2446.90047311,0.0001899,2]
[322593557,1713096539433,-2446.90047311,0.0001899,2]
[322593558,1713096539473,-2446.90047311,0.0001899,2]
[322593559,1713096539938,-2446.90047311,0.0001899,2]
[322593560,1713096539985,-2446.90047311,0.0001899,2]
[322593561,1713096540020,-2446.90047311,0.0001899,2]
[322593562,1713096540057,-2446.90047311,0.0001899,2]
[322593563,1713096540098,-2446.90047311,0.0001899,2]
[322593564,1713096540156,-1171.64440108,0.0001899,2]
[322593569,1713096564010,-203.40011604,0.00018988,2]
[322593570,1713096564038,-150.0,0.00018989,2]
[322593571,1713096564065,-150.0,0.00018989,2]
[322593572,1713096564092,-2652.06537756,0.0001899,2]
[322593573,1713096564187,-3155.4654936,0.0001899,2]
[322593574,1713096564264,-3155.4654936,0.0001899,2]
[322593575,1713096564309,-3155.4654936,0.0001899,2]
[322593576,1713096564373,-3155.4654936,0.0001899,2]
[322593577,1713096564423,-3155.4654936,0.0001899,2]
[322593578,1713096564472,-3155.4654936,0.0001899,2]
[322593579,1713096564536,-3155.4654936,0.0001899,2]
[322593580,1713096564666,-1970.7283167,0.0001899,2]
[322593583,1713096594265,-4000.0,0.0001899,2]
[322593584,1713096594918,-4000.0,0.0001899,2]
[322593585,1713096595591,-4000.0,0.0001899,2]
[322593586,1713096595868,-4000.0,0.0001899,2]
[322593587,1713096596283,-4000.0,0.0001899,2]
[322593588,1713096596829,-4000.0,0.0001899,2]
[322593589,1713096597257,-4000.0,0.0001899,2]
[322593590,1713096604305,-1000.0,0.0001899,2]
[322593591,1713096605003,-1000.0,0.0001899,2]
[322593606,1713096631665,-893.97357438,0.00018989,2]
[322593607,1713096631678,-13.76376861,0.00018989,2]
[322593608,1713096631688,-486.9497787,0.0001899,2]
[322593609,1713096631700,-5767.16304284,0.0001899,2]
[322593610,1713096631756,-5356.01039988,0.0001899,2]
[322593611,1713096631839,-1016.11749055,0.0001899,2]
[322593644,1713096637699,-854.4499999,0.0001899,2]
[322593648,1713096637730,431.37210144,0.00018897,2]
[322593669,1713096638041,-464396.66874599,0.0001899,2]
[322593670,1713096638051,-203.61674319,0.00019772,2]
[322593671,1713096638060,-317.59494763,0.00019872,2]
[322593672,1713096638070,-1852.42,0.00019971,2]
[322593673,1713096638079,-1719.37,0.00019971,2]
[322593674,1713096638088,-600.0,0.00020018,2]
[322593675,1713096638097,-901.38,0.0002007,3]
[322593677,1713096638106,-502.13,0.00020072,2]
[322593679,1713096638115,-6832.31,0.0002017,2]
[322593681,1713096638124,-500.0,0.0002018,2]
[322593683,1713096638134,-575.41,0.00020469,2]
[322593684,1713096638143,-499.99,0.00020699,2]
[322593687,1713096638153,-361.67271818,0.00020721,2]
[322593688,1713096638162,-361.67271818,0.00020744,2]
[322593690,1713096638171,-361.67271818,0.00020766,2]
[322593693,1713096638181,-6572.66,0.00020766,2]
[322593695,1713096638191,-361.67271818,0.00020788,2]
[322593697,1713096638201,-780.34286168,0.00020799,2]
[322593699,1713096638210,-361.67271818,0.00020811,2]
[322593701,1713096638219,-361.67271818,0.00020833,2]
[322593703,1713096638230,-361.67271818,0.00020855,2]
[322593705,1713096638238,-361.67271818,0.00020878,2]
[322593707,1713096638247,-68813.02978356,0.000209,2]
[322593709,1713096638256,-361.67271818,0.000209,2]
[322593711,1713096638265,-351.1835289,0.000209,2]
[322593713,1713096638275,-351.18352883,0.000209,2]
[322593715,1713096638284,-351.18352883,0.000209,2]
[322593717,1713096638293,-351.18352883,0.000209,2]
[322593719,1713096638302,-351.18352883,0.000209,2]
[322593721,1713096638311,-351.18352883,0.000209,2]
[322593723,1713096638320,-351.18352883,0.000209,2]
[322593725,1713096638329,-351.18352883,0.000209,2]
[322593727,1713096638338,-351.18352883,0.000209,2]
[322593729,1713096638347,-351.18352883,0.000209,2]
[322593731,1713096638356,-351.18352883,0.000209,2]
[322593733,1713096638365,-351.18352883,0.000209,2]
[322593735,1713096638374,-351.18352883,0.000209,2]
[322593737,1713096638384,-351.18352883,0.000209,2]
[322593739,1713096638392,-351.18352883,0.000209,2]
[322593741,1713096638403,-351.18352883,0.000209,2]
[322593743,1713096638412,-351.18352883,0.000209,2]
[322593745,1713096638421,-187.69455529,0.000209,2]
[322593747,1713096638430,-158.66,0.00020964,2]
[322593749,1713096638439,-155.0,0.00020997,2]
[322593751,1713096638448,-155.0,0.00020997,2]
[322593753,1713096638457,-224.63853312,0.00020998,2]
[322593755,1713096638467,-161.01830558,0.00020998,2]
[322593757,1713096638477,-432.28376086,0.00020998,2]
[322593758,1713096638485,-1000.0,0.00020998,5]
[322593760,1713096638494,-1000.0,0.00020998,5]
[322593762,1713096638503,-1000.0,0.00020998,5]
[322593764,1713096638513,-1000.0,0.00020998,5]
[322593767,1713096638522,-1000.0,0.00020998,5]
[322593769,1713096638531,-714.86127442,0.00020998,5]
[322593770,1713096638541,-1074.41736722,0.00020999,5]
[322593773,1713096638552,-1074.41736722,0.00020999,5]
[322593774,1713096638561,-1074.41736721,0.00020999,5]
[322593777,1713096638571,-434.40268867,0.00020999,2]
[322593779,1713096638580,-1079.19410442,0.00020999,5]
[322593781,1713096638590,-1079.19410442,0.00020999,5]
[322593783,1713096638600,-1079.19410442,0.00020999,5]
[322593785,1713096638609,-1079.19410444,0.00020999,5]
[322593787,1713096638618,-1079.19410442,0.00020999,5]
[322593789,1713096638627,-1111.40285644,0.00020999,5]
[322593790,1713096638637,-1111.40285644,0.00020999,5]
[322593793,1713096638646,-1111.40285644,0.00020999,5]
[322593795,1713096638656,-1111.40285644,0.00020999,5]
[322593797,1713096638665,-1111.40285642,0.00020999,5]
[322593799,1713096638674,-1080.33124838,0.00020999,5]
[322593801,1713096638683,-1080.33124838,0.00020999,5]
[322593803,1713096638693,-1080.33124837,0.00020999,5]
[322593805,1713096638702,-435837.96084,0.00020999,2]
[322593807,1713096638711,-500.0,0.00020999,2]
[322593808,1713096638721,-189.65213455,0.00020999,2]
[322593810,1713096638731,-500.0,0.00020999,2]
[322593813,1713096638740,-500.0,0.00020999,2]
[322593815,1713096638749,-500.0,0.00020999,2]
[322593816,1713096638758,-321.48770738,0.00020999,2]
[322593819,1713096638768,-500.0,0.00020999,2]
[322593820,1713096638777,-250.13798387,0.00020999,2]
[322593823,1713096638790,-442.52164728,0.00020999,2]
[322593825,1713096638799,-7914787.4975848,0.00021,2]
[322593934,1713096639975,-14438022.6587518,0.00021,2]
[322593937,1713096639991,-269840.67253395,0.00021,2]
[322593949,1713096640106,-63315.69047202,0.00021,2]
[322593951,1713096640117,-11128.09239299,0.00021,2]
[322593999,1713096642750,-351.18352883,0.000209,2]
[322594000,1713096642759,-1774.21776063,0.00020997,2]
[322594001,1713096642769,-30753.4055478,0.00021,2]
[322594005,1713096643556,-443.65965014,0.00020999,2]
[322594006,1713096643565,-11830.22170603,0.00021,2]
[322594007,1713096643576,-19239.74483276,0.00021,2]
[322594008,1713096645912,-351.18352883,0.000209,2]
[322594009,1713096645922,-38130.24065898,0.00021,2]
[322594019,1713096703026,10000.0,0.00029998,60]
[322594031,1713096850962,602.11,0.00018889,2]
[322594035,1713097144703,193.91876061,0.00018,2]
[322594038,1713097257070,155.0,0.00018,2]
[322594039,1713097362644,951.77106994,0.00036374,120]
[322594042,1713097501080,1586.625465,0.00029998,60]
[322594043,1713097566483,572.0,0.00017721,2]
[322594044,1713097633309,10000.0,0.00028998,60]
[322594050,1713097831751,-495.48279711,0.00019552,2]
[322594055,1713097831807,-27.83072277,0.00019552,2]
[322594056,1713097831817,-155.0,0.00019552,2]
[322594057,1713097831828,-324.91541716,0.00019553,2]
[322594058,1713097831867,-455.42744452,0.00019553,2]
[322594059,1713097831878,-173.83705031,0.00019555,2]
[322594060,1713097831929,-76.16294969,0.00019555,2]
[322594061,1713097831940,-957.53705031,0.00019575,2]
[322594062,1713097831957,-1239.53770201,0.00019575,2]
[322594063,1713097831970,-514.33101265,0.00019575,2]
[322594064,1713097832000,-530.38881895,0.00019575,2]
[322594065,1713097832014,-2977.84541608,0.00019575,2]
[322594066,1713097832024,-150.0,0.00019576,2]
[322594067,1713097832035,-2446.63,0.0001958,2]
[322594068,1713097832045,-161.4743902,0.00019647,2]
[322594069,1713097832055,-228.69,0.00019748,2]
[322594070,1713097832066,-499.99,0.00019769,2]
[322594071,1713097832077,-503.9147,0.00019769,2]
[322594072,1713097832088,-511.81,0.00019798,2]
[322594073,1713097832099,-2496.82472652,0.0001981,2]
[322594074,1713097832112,-6665.89650835,0.0001981,2]
[322594075,1713097832162,-2048.31876513,0.0001981,2]
[322594076,1713097832173,-1000.0,0.00019869,2]
[322594077,1713097832183,-170.38,0.0001994,2]
[322594078,1713097832195,-572.0,0.00019985,2]
[322594079,1713097832206,-170.38,0.00019995,2]
[322594080,1713097832220,-170.38,0.0002005,2]
[322594081,1713097832230,-170.38,0.00020104,2]
[322594082,1713097832240,-170.38,0.00020159,2]
[322594083,1713097832250,-170.38,0.00020214,2]
[322594084,1713097832259,-170.38,0.00020269,2]
[322594085,1713097832269,-170.38,0.00020323,2]
[322594086,1713097832279,-170.38,0.00020378,2]
[322594087,1713097832290,-1329.38809872,0.00020411,2]
[322594088,1713097832302,-1000.0,0.00020413,2]
[322594089,1713097832312,-170.38,0.00020433,2]
[322594090,1713097832325,-170.38,0.00020487,2]
[322594091,1713097832335,-170.38,0.00020542,2]
[322594092,1713097832345,-2732.31,0.00020586,2]
[322594093,1713097832356,-170.38,0.00020597,2]
[322594094,1713097832366,-170.38,0.00020651,2]
[322594095,1713097832376,-1000.0,0.00020695,2]
[322594096,1713097832388,-150.99,0.00020695,2]
[322594097,1713097832399,-166.78,0.000207,2]
[322594098,1713097832409,-170.38,0.00020706,2]
[322594099,1713097832419,-1329.38809872,0.00020707,2]
[322594100,1713097832428,-170.38,0.00020761,2]
[322594101,1713097832438,-170.38,0.00020815,2]
[322594102,1713097832448,-13845.53652003,0.00020823,2]
[322594103,1713097832459,-7120.8346,0.00020833,2]
[322594104,1713097832469,-170.38,0.0002087,2]
[322594105,1713097832478,-4000.0,0.000209,2]
[322594106,1713097832488,-161.47439019,0.000209,2]
[322594107,1713097832499,-3271.51993493,0.000209,2]
[322594108,1713097832509,-2500.0,0.000209,2]
[322594109,1713097832520,-1013.42519831,0.000209,2]
[322594110,1713097832531,-351.18352883,0.000209,2]
[322594111,1713097832542,-3271.51993493,0.000209,2]
[322594112,1713097832553,-3271.51993493,0.000209,2]
[322594113,1713097832564,-3271.51993493,0.000209,2]
[322594114,1713097832575,-3271.51993493,0.000209,2]
[322594115,1713097832586,-3271.51993493,0.00020901,2]
[322594116,1713097832597,-3271.51993493,0.00020901,2]
[322594117,1713097832608,-3271.51993493,0.00020901,2]
[322594118,1713097832618,-1212.53537323,0.00020901,2]
[322594119,1713097832631,-1334.24484287,0.00020901,2]
[322594120,1713097832653,-605.07878551,0.00020901,2]
[322594121,1713097832667,-119.66093332,0.00020901,2]
[322594122,1713097832677,-3271.51993493,0.00020901,2]
[322594123,1713097832688,-170.38,0.00020925,2]
[322594124,1713097832698,-170.38,0.00020979,2]
[322594125,1713097832709,-1743.33251072,0.00020984,2]
[322594126,1713097832720,-288.99877685,0.00020998,2]
[322594127,1713097832729,-862.1461916,0.00020998,2]
[322594136,1713097837773,-311.92558503,0.000209,2]
[322594137,1713097837782,-1467.18887857,0.00020998,2]
[322594138,1713097837843,-22.67752719,0.00020998,2]
[322594139,1713097837853,-155.0,0.00020998,2]
[322594140,1713097837863,-210.24561399,0.00020998,2]
[322594141,1713097837872,-56.19405384,0.00020998,2]
[322594142,1713097837885,-159.47362664,0.00020998,2]
[322594143,1713097837896,-626.45102105,0.00020998,2]
[322594144,1713097837908,-18.41479003,0.00020998,2]
[322594145,1713097837919,-376.27257024,0.00020999,2]
[322594146,1713097837929,-274.73971426,0.00020999,2]
[322594147,1713097837942,-1345.81534778,0.00020999,2]
[322594148,1713097838094,-600.80112678,0.00020999,2]
[322594149,1713097838104,-1538.56239464,0.00020999,2]
[322594150,1713097838114,-1059.40450287,0.00020999,5]
[322594151,1713097838123,-1059.40450287,0.00020999,5]
[322594152,1713097838133,-1059.40450287,0.00020999,5]
[322594153,1713097838144,-1059.40450287,0.00020999,5]
[322594154,1713097838153,-1000.0,0.00020999,5]
[322594155,1713097838162,-442.52164728,0.00020999,2]
[322594156,1713097838171,-500.0,0.00020999,2]
[322594157,1713097838181,-571.62569125,0.00020999,2]
[322594158,1713097838190,-500.0,0.00020999,2]
[322594159,1713097838199,-500.0,0.00020999,2]
[322594160,1713097838209,-500.0,0.00020999,2]
[322594162,1713097838221,-500.0,0.00020999,2]
[322594164,1713097838230,-7907600.16818645,0.00021,2]
[322594166,1713097838241,-4640600.60185633,0.00021,2]
[322594168,1713097838252,-715.17033749,0.00021,2]
[322594170,1713097838261,-445.33,0.00021,2]
[322594172,1713097838270,-356.93,0.00021,2]
[322594174,1713097838280,-1430.30975011,0.00021,2]
[322594176,1713097838290,-4232703.12361059,0.00021,2]
[322594178,1713097838300,-1743.33251072,0.00021001,2]
[322594181,1713097838309,-1743.33251072,0.00021018,2]
[322594183,1713097838318,-1743.33251072,0.00021035,2]
[322594185,1713097838327,-1743.33251072,0.00021052,2]
[322594187,1713097838336,-1329.38809874,0.00021231,2]
[322594189,1713097838346,-1209.0112,0.0002132,2]
[322594191,1713097838356,-1209.0112,0.0002143,2]
[322594193,1713097838366,-210.0,0.00021533,2]
[322594195,1713097838375,-1209.0112,0.0002159,2]
[322594197,1713097838385,-1209.01121,0.0002174,2]
[322594199,1713097838396,-173.743,0.00021814,2]
[322594201,1713097838405,-1209.0112,0.000219,2]
[322594203,1713097838413,-173.743,0.00021913,2]
[322594205,1713097838422,-250.0,0.00021918,2]
[322594207,1713097838431,-190.7,0.00021918,2]
[322594209,1713097838441,-250.0,0.00021918,2]
[322594211,1713097838451,-173.743,0.00022012,2]
[322594213,1713097838460,-1209.0112,0.0002205,2]
[322594215,1713097838469,-173.743,0.00022113,2]
[322594217,1713097838478,-572.0,0.00022249,2]
[322594220,1713097838488,-554.4499999,0.000223,2]
[322594222,1713097838497,-1130.0,0.000223,2]
[322594224,1713097838507,-2446.63,0.00022319,2]
[322594226,1713097838516,-1000.0,0.00022352,2]
[322594228,1713097838525,-1090.0,0.00022733,2]
[322594230,1713097838534,-1250.0,0.00023,3]
[322594232,1713097838543,-174.08,0.00023178,2]
[322594233,1713097838553,-167.0,0.00023982,2]
[322594234,1713097838562,-572.0,0.00024513,2]
[322594235,1713097838571,-500.0,0.000247,3]
[322594236,1713097838580,-1998.95566924,0.000248,2]
[322594237,1713097838589,-170.81,0.00024825,2]
[322594238,1713097838598,-1000.0,0.00024836,2]
[322594239,1713097838607,-1328.29392404,0.00025,2]
[322594240,1713097838617,-563.08685838,0.00025,2]
[322594241,1713097838626,-155.0,0.00025,2]
[322594242,1713097838635,-1300.0,0.00025,3]
[322594243,1713097838644,-2446.63,0.00025059,2]
[322594244,1713097838653,-150.0,0.00025356,2]
[322594245,1713097838662,-185.51,0.00025356,2]
[322594246,1713097838671,-166.78,0.00025875,2]
[322594247,1713097838681,-220.28640523,0.00026234,2]
[322594248,1713097838690,-1000.0,0.00026288,2]
[322594249,1713097838699,-500.0,0.00026288,2]
[322594250,1713097838708,-154.46,0.00026297,2]
[322594251,1713097838716,-154.46,0.00026305,2]
[322594252,1713097838726,-154.46,0.00026312,2]
[322594253,1713097838734,-154.46,0.00026319,2]
[322594254,1713097838744,-154.46,0.00026327,2]
[322594255,1713097838753,-154.46,0.00026334,2]
[322594256,1713097838762,-154.46,0.00026341,2]
[322594257,1713097838771,-154.46,0.00026349,2]
[322594258,1713097838780,-154.46,0.00026356,2]
[322594259,1713097838789,-154.46,0.00026363,2]
[322594260,1713097838798,-1000.0,0.00026368,2]
[322594261,1713097838807,-1000.0,0.00026368,2]
[322594262,1713097838815,-1000.0,0.00026368,2]
[322594263,1713097838824,-1000.0,0.00026368,2]
[322594264,1713097838834,-1000.0,0.00026368,2]
[322594265,1713097838843,-1000.0,0.00026368,2]
[322594266,1713097838852,-1000.0,0.00026368,2]
[322594267,1713097838861,-1000.0,0.00026368,2]
[322594268,1713097838871,-1000.0,0.00026368,2]
[322594269,1713097838880,-1000.0,0.00026368,2]
[322594270,1713097838889,-1000.0,0.00026368,2]
[322594271,1713097838898,-1000.0,0.00026368,2]
[322594272,1713097838908,-1000.0,0.00026368,2]
[322594273,1713097838917,-1000.0,0.00026368,2]
[322594274,1713097838926,-1000.0,0.00026368,2]
[322594275,1713097838935,-1000.0,0.00026368,2]
[322594276,1713097838944,-1000.0,0.00026368,2]
[322594277,1713097838954,-1000.0,0.00026368,2]
[322594278,1713097838963,-1000.0,0.00026368,2]
[322594279,1713097838972,-1000.0,0.00026368,2]
[322594280,1713097838981,-1000.0,0.00026368,2]
[322594281,1713097838990,-1000.0,0.00026368,2]
[322594282,1713097838999,-1000.0,0.00026368,2]
[322594283,1713097839009,-1000.0,0.00026368,2]
[322594284,1713097839018,-589.2752,0.00026368,2]
[322594285,1713097839027,-500.0,0.00026368,2]
[322594286,1713097839036,-500.0,0.00026368,2]
[322594287,1713097839045,-500.0,0.00026368,2]
[322594288,1713097839054,-500.0,0.00026368,2]
[322594289,1713097839063,-499.9999,0.00026368,2]
[322594290,1713097839073,-154.46,0.0002637,2]
[322594291,1713097839082,-154.46,0.00026378,2]
[322594292,1713097839398,-154.46,0.00026385,2]
[322594293,1713097839407,-154.46,0.00026392,2]
[322594294,1713097839416,-154.46,0.000264,2]
[322594295,1713097839426,-154.46,0.00026407,2]
[322594296,1713097839434,-154.46,0.00026414,2]
[322594297,1713097839445,-154.46,0.00026422,2]
[322594298,1713097839453,-154.46,0.00026429,2]
[322594299,1713097839462,-264.53137314,0.00026499,2]
[322594300,1713097839471,-236.06366444,0.00026499,2]
[322594301,1713097839481,-150.01,0.00026499,2]
[322594302,1713097839490,-5835.31046315,0.00026499,2]
[322594303,1713097839499,-31366.00053973,0.000265,2]
[322594304,1713097839508,-482.0,0.000265,10]
[322594305,1713097839518,-18867.5847268,0.00026691,2]
[322594306,1713097839530,-9223.3640844,0.00026691,2]
[322594307,1713097839540,-141378.3167562,0.00026717,2]
[322594308,1713097839549,-15505.3341662,0.00026717,2]
[322594309,1713097839558,-572.0,0.00026777,2]
[322594311,1713097839567,-188.56727963,0.00027,4]
[322594313,1713097839580,-1350.0,0.00027,3]
[322594315,1713097839590,-167.13,0.00027127,2]
[322594317,1713097839599,-1000.0,0.00027319,2]
[322594319,1713097839608,-166.5095479,0.00027397,2]
[322594320,1713097839618,-196.84,0.00027397,2]
[322594321,1713097839628,-152.24,0.00027397,2]
[322594322,1713097839637,-154.76,0.00027397,2]
[322594323,1713097839646,-173.59,0.00027397,2]
[322594324,1713097839656,-2000.0,0.00027397,2]
[322594325,1713097839665,-152.68,0.00027397,2]
[322594326,1713097839674,-2096.78,0.000274,2]
[322594327,1713097839684,-2096.78,0.000274,2]
[322594328,1713097839693,-2096.78,0.000274,2]
[322594329,1713097839703,-2096.78,0.000274,2]
[322594330,1713097839712,-2096.78,0.000274,2]
[322594331,1713097839721,-228.69,0.00027648,2]
[322594332,1713097839730,-1647.0,0.000279,2]
[322594333,1713097839739,-20189.0893382,0.00028,2]
[322594334,1713097839749,-982.14733734,0.00028,2]
[322594335,1713097839758,-445.33,0.000284,2]
[322594336,1713097839767,-356.93,0.000284,2]
[322594337,1713097839778,-1000.0,0.000288,3]
[322594338,1713097839787,-206.42056289,0.00028998,2]
[322594339,1713097839796,-155.0,0.00028998,2]
[322594340,1713097839806,-1000.0,0.00029,10]
[322594341,1713097839816,-562.05444632,0.00029,2]
[322594342,1713097839825,-406360.68329994,0.00029,2]
[322594344,1713097839834,-6750.20773336,0.00029,2]
[322594346,1713097839843,-1000.0,0.00029,2]
[322594348,1713097839852,-1400.0,0.00029,3]
[322594350,1713097839861,-151.75,0.00029,2]
[322594352,1713097839870,-151.75,0.00029,2]
[322594353,1713097839879,-151.75,0.00029,2]
[322594354,1713097839889,-151.75,0.00029,2]
[322594355,1713097839899,-151.75,0.00029,2]
[322594356,1713097839910,-151.75,0.00029,2]
[322594357,1713097839928,-151.75,0.00029,2]
[322594359,1713097839940,-151.75,0.00029,2]
[322594361,1713097839951,-151.75,0.00029,2]
[322594363,1713097839961,-151.75,0.00029,2]
[322594365,1713097839971,-151.75,0.00029,2]
[322594367,1713097839981,-151.75,0.00029,2]
[322594369,1713097839991,-151.75,0.00029,2]
[322594371,1713097840001,-151.75,0.00029,2]
[322594373,1713097840011,-151.75,0.00029,2]
[322594375,1713097840020,-151.75,0.00029,2]
[322594377,1713097840030,-151.75,0.00029,2]
[322594379,1713097840040,-151.75,0.00029,2]
[322594381,1713097840049,-151.75,0.00029,2]
[322594383,1713097840059,-151.75,0.00029,2]
[322594385,1713097840069,-151.75,0.00029,2]
[322594387,1713097840078,-151.75,0.00029,2]
[322594389,1713097840087,-572.0,0.00029041,2]
[322594391,1713097840097,-444.75990606,0.000295,3]
[322594393,1713097840106,-1000.0,0.00029803,2]
[322594395,1713097840116,-10532.01443409,0.00029879,2]
[322594397,1713097840125,-1826077.03336102,0.0002988,2]
[322594399,1713097840134,-5672.99698819,0.0003,2]
[322594401,1713097840143,-420.91017053,0.0003,2]
[322594403,1713097840154,-2798.79967154,0.0003,4]
[322594405,1713097840163,-407.20455335,0.0003,4]
[322594407,1713097840172,-6493.52292929,0.0003,2]
[322594409,1713097840183,-5288.67319609,0.0003,7]
[322594411,1713097840192,-14910.76477347,0.0003,4]
[322594413,1713097840201,-206.0,0.0003,2]
[322594415,1713097840211,-180.0,0.00030258,2]
[322594417,1713097840222,-664.0,0.00030329,2]
[322594419,1713097840231,-534.0,0.00030329,2]
[322594421,1713097840240,-356.93,0.000306,2]
[322594423,1713097840249,-445.33,0.000306,2]
[322594425,1713097840259,-492.59944719,0.00031,4]
[322594427,1713097840269,-1000.0,0.00031,3]
[322594429,1713097840278,-1450.0,0.00031,3]
[322594431,1713097840287,-12500.0,0.00031038,2]
[322594433,1713097840297,-166.78,0.0003105,2]
[322594435,1713097840307,-12500.0,0.00031164,2]
[322594437,1713097840317,-572.0,0.00031305,2]
[322594439,1713097840326,-167.13,0.00031605,2]
[322594441,1713097840336,-216.83,0.00031644,2]
[322594443,1713097840345,-664.0,0.00031699,2]
[322594445,1713097840355,-534.0,0.00031699,2]
[322594447,1713097840364,-200.0,0.00031838,2]
[322594449,1713097840374,-1000.0,0.00031838,10]
[322594452,1713097840383,-500.0,0.00031838,2]
[322594454,1713097840392,-200.0,0.00031838,2]
[322594456,1713097840403,-200.0,0.00031869,7]
[322594458,1713097840412,-332.37940372,0.00032,4]
[322594460,1713097840421,-155.18100276,0.00032,2]
[322594462,1713097840431,-1000.0,0.00032,3]
[322594464,1713097840440,-253.729,0.00032552,2]
[322594466,1713097840449,-263.743,0.00032552,2]
[322594468,1713097840459,-436.0,0.00032552,2]
[322594470,1713097840468,-1130.0,0.00032552,2]
[322594472,1713097840477,-215.0,0.00032552,2]
[322594474,1713097840487,-443.0,0.00032552,2]
[322594476,1713097840496,-355.0,0.00032552,2]
[322594478,1713097840505,-980.32,0.00032552,2]
[322594480,1713097840514,-4803.0,0.00032552,2]
[322594482,1713097840524,-2291.0,0.00032552,2]
[322594484,1713097840533,-1421.498,0.00032552,2]
[322594486,1713097840542,-474.21,0.00032552,2]
[322594488,1713097840551,-794.353,0.00032552,2]
[322594490,1713097840561,-1284.944,0.00032552,2]
[322594492,1713097840570,-611.44133086,0.000326,20]
[322594494,1713097840579,-8872.37,0.00032603,2]
[322594496,1713097840588,-1650.88,0.00032603,2]
[322594498,1713097840597,-16813.37905777,0.000328,2]
[322594500,1713097840607,-150.0,0.00032877,2]
[322594502,1713097840617,-150.0,0.00032877,30]
[322594504,1713097840626,-150.0,0.00032877,30]
[322594506,1713097840635,-150.0,0.00032877,30]
[322594508,1713097840644,-150.0,0.00032877,30]
[322594510,1713097840655,-150.0,0.00032877,30]
[322594512,1713097840664,-150.0,0.00032879,30]
[322594514,1713097840673,-150.0,0.00032879,30]
[322594516,1713097840682,-150.0,0.00032879,30]
[322594518,1713097840691,-224.6419081,0.00032879,30]
[322594520,1713097840700,-2010.16794555,0.0003288,2]
[322594521,1713097840709,-2010.16794555,0.0003288,2]
[322594522,1713097840718,-2010.16794555,0.0003288,2]
[322594523,1713097840728,-2010.16794555,0.0003288,2]
[322594524,1713097840736,-2010.16794555,0.0003288,2]
[322594525,1713097840746,-2010.16794555,0.0003288,2]
[322594526,1713097840755,-2010.16794555,0.0003288,2]
[322594528,1713097840764,-2010.16794555,0.0003288,2]
[322594530,1713097840774,-2010.16794555,0.0003288,2]
[322594531,1713097840782,-2010.16794555,0.0003288,2]
[322594532,1713097840791,-2010.16794555,0.0003288,2]
[322594533,1713097840801,-2010.16794555,0.0003288,2]
[322594534,1713097840811,-2010.16794555,0.0003288,2]
[322594535,1713097840820,-2010.16794555,0.0003288,2]
[322594536,1713097840830,-2010.16794555,0.0003288,2]
[322594537,1713097840840,-2010.16794555,0.0003288,2]
[322594538,1713097840850,-2010.16794555,0.0003288,2]
[322594539,1713097840860,-2010.16794555,0.0003288,2]
[322594540,1713097840870,-2010.16794555,0.0003288,2]
[322594541,1713097840879,-2010.66,0.0003288,2]
[322594542,1713097840889,-889.39757815,0.0003288,2]
[322594543,1713097840898,-889.39757815,0.0003288,2]
[322594544,1713097840908,-889.39757815,0.0003288,2]
[322594545,1713097840917,-889.39757815,0.0003288,2]
[322594546,1713097840927,-889.39757815,0.0003288,2]
[322594547,1713097840936,-889.39757815,0.0003288,2]
[322594548,1713097840946,-889.39757815,0.0003288,2]
[322594549,1713097840956,-889.39757815,0.0003288,2]
[322594550,1713097840966,-889.39757815,0.0003288,2]
[322594551,1713097840975,-889.39757815,0.0003288,2]